bitfinex/quotes_SOLUSD_20250522
["timestamp","ask_amount","ask_price","bid_price","bid_amount"]
[1747925325987,60.06275848,179.02,178.92,18.64964886]
[1747925326193,5.58596804,179.02,178.92,18.64964886]
[1747925327117,40.51187032,179.02,178.92,24.23863224]
[1747925327629,5.58534405,179.04,178.93,0.14216157]
[1747925327802,1.6659,179.09,178.95,0.14216157]
[1747925327803,40.51187032,179.08,178.95,0.14216157]
[1747925328003,5.58409649,179.08,178.99,0.14216157]
[1747925328316,5.58382492,179.09,179.01,18.64964886]
[1747925330519,5.58382492,179.09,179.01,24.23585959]
[1747925331426,5.58253782,179.13,179.02,0.14216157]
[1747925331623,5.58253782,179.13,179.05,18.64964886]
[1747925331794,5.58253782,179.13,179.06,33.48]
[1747925331992,54.46470646,179.18,179.06,33.48]
[1747925331993,5.58129151,179.17,179.08,18.64964886]
[1747925332230,5.58104011,179.18,179.11,26.0]
[1747925332400,5.57942308,179.23,179.13,0.14216157]
[1747925332710,19.52798079,179.23,179.14,58.58964886]
[1747925333223,19.52798079,179.23,179.14,61.3519284]
[1747925334013,19.52798079,179.23,179.14,58.58964886]
[1747925336944,19.52798079,179.23,179.15,0.14216157]
[1747925337249,19.52798079,179.23,179.17,26.0]
[1747925337557,19.52798079,179.23,179.18,33.48]
[1747925339137,19.52362357,179.27,179.18,33.48]
[1747925340753,19.52362357,179.27,179.19,18.64964886]
[1747925340923,5.57817816,179.27,179.2,0.14216157]
[1747925341118,5.57786702,179.28,179.21,39.92]
[1747925342137,40.51187032,179.24,179.17,208.82]
[1747925342316,40.51187032,179.21,179.17,39.9]
[1747925342516,40.51187032,179.19,179.12,39.9]
[1747925343115,40.51187032,179.18,179.12,39.9]
[1747925343429,19.53452028,179.17,179.12,39.9]
[1747925344246,5.58129151,179.17,179.12,39.9]
[1747925345234,0.14216157,179.23,179.13,18.64964886]
[1747925345235,39.94884132,179.23,179.13,18.64964886]
[1747925345464,39.94884132,179.23,179.13,19.2077571]
[1747925345640,19.52907041,179.22,179.13,18.64964886]
[1747925345840,60.04094073,179.22,179.12,39.9]
[1747925346550,60.04094073,179.22,179.12,45.48271448]
[1747925346865,60.04094073,179.22,179.12,39.9]
[1747925347368,19.52907041,179.22,179.12,39.9]
[1747925347775,40.51187032,179.2,179.12,39.9]
[1747925347955,19.52907041,179.22,179.13,33.46]
[1747925348173,40.51187032,179.21,179.13,33.46]
[1747925348875,40.51187032,179.2,179.13,33.46]
[1747925349049,40.51187032,179.21,179.13,33.46]
[1747925349448,60.04312031,179.2,179.13,33.46]
[1747925349670,46.51249556,179.2,179.13,33.46]
[1747925350166,5.58035714,179.2,179.13,33.46]
[1747925351378,5.58035714,179.2,179.13,39.04247533]
[1747925351688,66.93019779,179.23,179.13,39.04247533]
[1747925351689,5.5797344,179.22,179.13,39.04247533]
[1747925351848,5.5797344,179.22,179.14,18.64964886]
[1747925353160,5.5797344,179.22,179.09,28.75842171]
[1747925353161,26.98124557,179.2,179.09,28.75842171]
[1747925353453,26.98124557,179.19,179.1,91.94964886]
[1747925353689,26.98124557,179.2,179.1,91.94964886]
[1747925353863,26.98124557,179.19,179.1,91.94964886]
[1747925354270,26.98124557,179.16,179.1,73.3]
[1747925354880,26.98124557,179.13,179.1,39.84]
[1747925355128,6.5916,179.16,179.1,39.84]
[1747925355129,26.98124557,179.11,179.1,39.84]
[1747925355251,32.56440675,179.11,179.07,33.46]
[1747925355446,5.58316118,179.11,179.07,33.46]
[1747925355676,32.56440675,179.11,179.07,33.46]
[1747925355880,60.05328727,179.11,179.06,208.82]
[1747925356095,40.51222313,179.1,179.05,39.84]
[1747925356387,40.51222313,179.09,179.05,39.84]
[1747925356773,40.51222313,179.1,179.05,39.84]
[1747925357075,60.05328727,179.11,179.05,39.84]
[1747925357573,46.09538431,179.11,179.05,39.84]
[1747925357756,5.58316118,179.11,179.05,39.84]
[1747925358870,66.51222313,179.12,179.05,45.42499489]
[1747925358871,31.58286755,179.12,179.05,45.42499489]
[1747925359676,5.58286755,179.12,179.05,45.42499489]
[1747925360771,5.58253782,179.13,179.05,45.42499489]
[1747925361489,5.58253782,179.13,179.06,18.64964886]
[1747925361680,26.0,179.15,179.06,18.64964886]
[1747925361681,5.58230702,179.14,179.06,18.64964886]
[1747925361883,5.58230702,179.14,179.05,45.42499489]
[1747925361884,5.58230702,179.14,179.05,39.84]
[1747925362394,60.05009562,179.14,179.05,39.84]
[1747925362570,40.51222313,179.12,179.05,73.3]
[1747925362902,5.58316118,179.11,179.05,73.3]
[1747925364396,31.58316118,179.11,179.05,73.3]
[1747925365868,5.58316118,179.11,179.05,73.3]
[1747925366903,19.54106414,179.11,179.05,73.3]
[1747925367400,60.05328727,179.11,179.05,73.3]
[1747925367590,60.05328727,179.11,179.05,39.84]
[1747925367777,66.51222313,179.1,179.05,39.84]
[1747925367979,31.58316118,179.11,179.05,39.84]
[1747925369080,5.58316118,179.11,179.05,39.84]
[1747925369302,5.58284948,179.12,179.06,33.48]
[1747925369973,5.58222619,179.14,179.06,33.48]
[1747925370173,5.58222619,179.14,179.07,18.64964886]
[1747925370594,142.48193894,179.15,179.07,18.64964886]
[1747925370773,5.58193894,179.15,179.07,18.64964886]
[1747925371398,5.58193894,179.15,179.08,5.58409649]
[1747925372301,5.58193894,179.15,179.07,24.23401988]
[1747925372487,19.53672543,179.15,179.06,33.48]
[1747925373278,40.51222313,179.12,179.02,26.0]
[1747925373476,5.58316118,179.11,179.03,39.86]
[1747925373695,5.58316118,179.11,179.04,18.64964886]
[1747925374093,5.58316118,179.11,179.03,39.86]
[1747925374293,5.58316118,179.11,179.04,18.64964886]
[1747925374681,5.58316118,179.11,179.06,26.0]
[1747925374895,5.58316118,179.11,179.06,59.48]
[1747925375483,54.468046,179.14,179.06,33.48]
[1747925375705,54.468046,179.14,179.03,39.86]
[1747925375706,40.51222313,179.1,179.03,73.34]
[1747925376081,40.51222313,179.1,179.03,39.86]
[1747925376485,40.51222313,179.09,179.03,39.86]
[1747925377492,19.54433772,179.08,179.03,39.86]
[1747925377711,27.03054344,179.04,178.95,208.8]
[1747925377899,27.03054344,179.02,178.98,39.86]
[1747925378507,27.03054344,179.03,178.98,39.86]
[1747925378819,0.14216157,179.06,178.98,39.86]
[1747925378820,27.03054344,179.02,178.98,39.86]
[1747925378986,0.14216157,179.06,178.98,39.86]
[1747925379184,27.03054344,179.01,178.98,39.86]
[1747925379606,5.58659217,179.0,178.98,39.86]
[1747925380722,32.61713561,179.0,178.98,39.86]
[1747925381085,46.58361605,179.0,178.95,208.8]
[1747925381804,46.58361605,179.0,178.93,39.8]
[1747925383728,27.03054344,178.96,178.9,26.0]
[1747925384013,27.03054344,178.96,178.9,39.8]
[1747925384211,27.03054344,178.95,178.9,39.8]
[1747925384595,19.55713018,178.97,178.9,39.8]
[1747925384596,27.03054344,178.92,178.9,39.8]
[1747925384899,0.14216157,178.96,178.84,208.9]
[1747925384900,27.03054344,178.91,178.85,73.28]
[1747925385097,27.03054344,178.89,178.85,39.8]
[1747925385408,27.03054344,178.9,178.85,39.8]
[1747925385592,33.48,178.93,178.85,39.8]
[1747925385920,5.58909009,178.92,178.85,39.8]
[1747925386603,5.58909009,178.92,178.85,45.39105129]
[1747925386811,5.58878475,178.93,178.85,39.8]
[1747925386989,5.58878475,178.93,178.86,33.5]
[1747925388608,5.58878475,178.93,178.86,39.09084151]
[1747925388812,5.58878475,178.93,178.86,33.5]
[1747925390120,13.97091913,178.95,178.86,59.5]
[1747925390306,41.00146257,178.95,178.86,59.5]
[1747925390503,13.97091913,178.95,178.86,59.5]
[1747925391110,13.97091913,178.95,178.86,65.0908653]
[1747925391319,32.61838429,178.96,178.86,59.5]
[1747925391507,19.55744299,178.96,178.86,59.5]
[1747925391699,27.03054344,178.95,178.86,59.5]
[1747925392101,46.58798643,178.96,178.86,59.5]
[1747925392298,5.58784085,178.96,178.89,26.0]
[1747925392670,6.3482,178.98,178.9,59.5]
[1747925392809,6.3482,178.98,178.91,33.5]
[1747925393119,6.3482,178.98,178.92,39.82]
[1747925393306,11.93549901,178.98,178.92,39.82]
[1747925395519,5.58596804,179.02,178.93,26.0]
[1747925395908,5.58596804,179.02,178.95,26.0]
[1747925396111,46.5814316,179.02,178.95,59.5]
[1747925396510,19.55088816,179.02,178.95,59.5]
[1747925396696,5.58596804,179.02,178.95,59.5]
[1747925398016,5.58596804,179.02,178.95,33.5]
[1747925398324,27.03054344,179.0,178.92,39.82]
[1747925398524,27.03054344,178.98,178.92,73.32]
[1747925399226,27.03054344,178.98,178.92,39.82]
[1747925399815,27.03054344,178.95,178.92,39.82]
[1747925400219,26.14216157,178.98,178.92,39.82]
[1747925400424,5.58815311,178.95,178.92,39.82]
[1747925401608,142.48779233,178.97,178.92,39.82]
[1747925403139,136.9,179.01,178.95,26.0]
[1747925403311,5.58596804,179.02,178.95,59.5]
[1747925405436,5.58596804,179.02,178.95,65.08811128]
[1747925405840,5.58596804,179.02,178.95,64.80811128]
[1747925406140,5.58596804,179.02,178.95,59.22]
[1747925408649,5.5847202,179.06,178.96,18.64964886]
[1747925408847,5.5847202,179.06,178.96,19.20829109]
[1747925409053,19.54587723,179.07,178.97,5.58752863]
[1747925409460,5.58440833,179.07,179.01,26.0]
[1747925409642,27.03054344,179.12,179.02,73.32]
[1747925409643,5.58284948,179.12,179.02,73.32]
[1747925409843,5.58284948,179.12,179.04,26.0]
[1747925410040,19.53997319,179.12,179.04,26.0]
[1747925410544,19.53997319,179.12,179.04,33.2346347]
[1747925410870,6.1361,179.17,179.08,26.0]
[1747925411075,1.5724,179.2,179.1,5.58347292]
[1747925411375,5.58035714,179.2,179.1,5.58347292]
[1747925411549,5.58035714,179.2,179.11,18.64964886]
[1747925411866,5.58035714,179.2,179.11,44.64964886]
[1747925412174,5.58035714,179.2,179.14,26.0]
[1747925412375,5.58035714,179.2,179.15,33.5]
[1747925412572,32.61090058,179.2,179.15,39.76]
[1747925412866,19.53124999,179.2,179.15,39.76]
[1747925413372,13.95089285,179.2,179.15,39.76]
[1747925414656,27.03054344,179.18,179.07,26.0]
[1747925414857,27.03054344,179.17,179.08,99.22]
[1747925415210,46.56615406,179.16,179.08,39.74]
[1747925415357,46.56615406,179.16,179.08,73.22]
[1747925415666,74.47416924,179.16,179.08,73.22]
[1747925415871,27.03054344,179.15,179.08,73.22]
[1747925416068,27.03054344,179.13,179.08,39.74]
[1747925416279,47.4436258,179.16,179.08,39.74]
[1747925416280,27.03054344,179.14,179.08,39.74]
[1747925417062,27.03054344,179.13,179.07,39.74]
[1747925417259,53.71707006,179.11,179.01,18.64964886]
[1747925417574,80.7476135,179.11,179.05,39.74]
[1747925417785,80.7476135,179.11,179.04,39.74]
[1747925418084,27.03054344,179.1,179.04,39.74]
[1747925418582,53.71707006,179.11,179.04,39.74]
[1747925418956,80.7476135,179.11,179.04,39.74]
[1747925419363,25.80126414,179.11,179.05,26.0]
[1747925419600,5.58316118,179.11,179.09,26.0]
[1747925420264,6.2646,179.17,179.09,26.0]
[1747925420265,5.58253782,179.13,179.1,33.48]
[1747925420568,5.58160303,179.16,179.11,39.74]
[1747925420995,5.58066856,179.19,179.14,26.0]
[1747925421165,13.94885441,179.23,179.15,33.48]
[1747925421468,5.57880055,179.25,179.18,26.0]
[1747925421655,5.57880055,179.25,179.19,39.74]
[1747925421861,5.57880055,179.25,179.21,26.0]
[1747925423362,19.51817978,179.32,179.25,26.0]
[1747925423575,19.51817978,179.32,179.26,39.74]
[1747925423869,46.54872322,179.32,179.26,39.74]
[1747925424078,19.51817978,179.32,179.26,39.74]
[1747925425499,40.97210043,179.32,179.26,39.74]
[1747925425672,13.94155699,179.32,179.26,39.74]
[1747925426512,40.97210043,179.32,179.26,39.74]
[1747925426827,13.94155699,179.32,179.26,39.74]
[1747925427779,5.57631182,179.33,179.3,26.0]
[1747925427974,5.57631182,179.33,179.3,59.46]
[1747925429318,5.57506829,179.37,179.3,59.46]
[1747925429822,19.51273902,179.37,179.3,59.46]
[1747925429985,5.57506829,179.37,179.3,59.46]
[1747925430397,5.57506829,179.37,179.34,26.0]
[1747925430693,5.57506829,179.37,179.35,39.72]
[1747925431520,19.51056357,179.39,179.35,39.72]
[1747925433221,27.03054344,179.36,179.27,39.7]
[1747925433417,27.03054344,179.31,179.27,39.7]
[1747925433709,32.60778828,179.3,179.27,39.7]
[1747925434279,27.03054344,179.29,179.27,39.7]
[1747925435612,5.57786702,179.28,179.27,39.7]
[1747925436117,46.55307801,179.28,179.22,39.7]
[1747925436921,27.03054344,179.27,179.22,39.7]
[1747925437616,19.52689131,179.24,179.2,39.7]
[1747925437822,19.52689131,179.24,179.19,39.7]
[1747925439122,27.03054344,179.21,179.14,248.36]
[1747925439291,27.03054344,179.2,179.14,248.36]
[1747925439492,27.03054344,179.19,179.14,248.36]
[1747925439692,5.58160303,179.16,179.14,248.36]
[1747925439916,32.61214647,179.16,179.14,39.7]
[1747925440092,27.03054344,179.15,179.09,39.7]
[1747925440526,5.58160303,179.16,179.09,65.7]
[1747925441714,5.58129151,179.17,179.09,65.7]
[1747925441886,5.58129151,179.17,179.09,71.2836547]
[1747925442082,5.58129151,179.17,179.09,39.7]
[1747925442281,5.58129151,179.17,179.09,65.7]
[1747925443009,32.61183495,179.17,179.09,65.7]
[1747925443314,32.61183495,179.17,179.09,71.28377689]
[1747925443315,5.58129151,179.17,179.09,71.28377689]
[1747925443991,5.58129151,179.17,179.12,26.0]
[1747925444314,32.61183495,179.17,179.09,39.7]
[1747925444497,5.58129151,179.17,179.09,45.28376799]
[1747925444811,5.58104743,179.18,179.1,18.64964886]
[1747925445246,6.2322,179.22,179.11,0.70027353]
[1747925445422,6.2322,179.22,179.13,18.64964886]
[1747925445717,11.81205688,179.22,179.13,24.2319098]
[1747925446516,11.81201795,179.22,179.13,24.2319098]
[1747925446895,6.2322,179.22,179.13,24.2319098]
[1747925447096,26.0,179.25,179.13,24.2319098]
[1747925447414,32.60965524,179.24,179.13,18.64964886]
[1747925447584,26.0,179.21,179.12,33.46]
[1747925447788,5.58035714,179.2,179.13,73.14]
[1747925448514,27.03054344,179.19,179.13,39.68]
[1747925448712,27.03054344,179.17,179.13,39.68]
[1747925448903,27.03054344,179.16,179.13,39.68]
[1747925449228,6.2293,179.17,179.13,39.68]
[1747925449728,5.58160303,179.16,179.13,39.68]
[1747925449947,5.58035714,179.2,179.13,39.68]
[1747925450433,5.58035714,179.2,179.14,33.46]
[1747925451340,46.56179343,179.2,179.13,39.68]
[1747925451715,27.03054344,179.19,179.13,39.68]
[1747925452020,19.53343007,179.18,179.13,39.68]
[1747925452413,27.03054344,179.17,179.13,39.68]
[1747925453115,45.53343007,179.18,179.13,39.68]
[1747925453116,72.56397351,179.18,179.13,39.68]
[1747925453626,45.53343007,179.18,179.13,39.68]
[1747925454009,31.58098002,179.18,179.13,39.68]
[1747925455140,45.53343007,179.18,179.13,39.68]
[1747925455349,27.03054344,179.17,179.13,39.68]
[1747925456009,27.03054344,179.14,179.13,39.68]
[1747925456209,6.1067,179.12,179.03,248.38]
[1747925456409,27.03054344,179.09,179.03,248.38]
[1747925456632,27.03054344,179.08,179.03,248.38]
[1747925456841,27.03054344,179.06,179.03,39.68]
[1747925457353,27.03054344,179.06,178.95,2.85761422]
[1747925457354,27.03054344,179.04,178.94,8.42237092]
[1747925457518,0.14216157,179.05,178.96,39.68]
[1747925457519,27.03054344,179.01,178.96,39.68]
[1747925457714,27.03054344,179.0,178.96,39.68]
[1747925458140,27.03054344,178.98,178.96,39.68]
[1747925458436,27.03054344,178.97,178.92,208.78]
[1747925459028,27.03054344,178.98,178.92,208.78]
[1747925459439,5.58690429,178.99,178.92,208.78]
[1747925459626,6.0823,179.0,178.93,26.0]
[1747925459939,6.0823,179.0,178.94,33.46]
[1747925460138,11.66893444,179.0,178.94,33.46]
[1747925460436,11.66893444,179.0,178.93,26.0]
[1747925460633,27.03054344,178.99,178.92,208.78]
[1747925460810,27.03054344,178.99,178.92,242.24]
[1747925461010,11.66893444,179.0,178.92,242.24]
[1747925461316,27.03054344,178.99,178.92,242.24]
[1747925461516,27.03054344,178.97,178.92,208.78]
[1747925461728,27.03054344,178.96,178.92,208.78]
[1747925462038,5.58815311,178.95,178.92,208.78]
[1747925462655,5.58815311,178.95,178.82,5.59221563]
[1747925462656,27.03054344,178.93,178.82,5.59221563]
[1747925462814,27.03054344,178.93,178.86,39.7]
[1747925463316,27.03054344,178.94,178.86,39.7]
[1747925463839,5.58877773,178.93,178.86,39.7]
[1747925465825,19.55853589,178.95,178.87,26.0]
[1747925466025,5.58815311,178.95,178.87,26.0]
[1747925466536,5.58815311,178.95,178.87,5.59052737]
[1747925466839,5.58690429,178.99,178.89,26.0]
[1747925467039,32.61744773,178.99,178.9,33.48]
[1747925467934,5.58690429,178.99,178.94,26.0]
[1747925468938,27.03054344,178.97,178.93,39.72]
[1747925469154,27.03054344,178.94,178.89,39.72]
[1747925469351,27.03054344,178.94,178.88,39.72]
[1747925469940,5.58877773,178.93,178.88,65.72]
[1747925470534,5.58877773,178.93,178.88,39.72]
[1747925470535,46.5912655,178.93,178.88,39.72]
[1747925471135,27.03054344,178.9,178.83,73.22]
[1747925471346,33.65544344,178.89,178.83,65.72]
[1747925471644,27.03054344,178.87,178.83,39.72]
[1747925472040,6.6249,178.89,178.83,39.72]
[1747925472041,5.590965,178.86,178.83,39.72]
[1747925473559,5.59059606,178.88,178.83,39.72]
[1747925474140,27.03054344,178.87,178.83,39.72]
[1747925474354,27.03054344,178.86,178.83,39.72]
[1747925474523,27.03054344,178.85,178.8,208.88]
[1747925475041,0.14216157,178.87,178.8,208.88]
[1747925475042,27.03054344,178.86,178.8,208.88]
[1747925475272,5.59059606,178.88,178.83,26.0]
[1747925475560,40.1249,178.89,178.84,26.0]
[1747925475561,12.21499365,178.89,178.84,26.0]
[1747925475727,0.14216157,178.94,178.85,73.2]
[1747925475728,20.37077891,178.94,178.85,73.2]
[1747925475925,47.40132235,178.94,178.85,73.2]
[1747925476263,5.58877773,178.93,178.85,78.79127565]
[1747925476431,33.42984344,178.94,178.88,26.0]
[1747925476432,6.3993,178.94,178.88,26.0]
[1747925477257,27.03054344,178.93,178.88,26.0]
[1747925477955,27.03054344,178.89,178.85,39.7]
[1747925478134,5.59033989,178.88,178.85,39.7]
[1747925479058,27.03054344,178.87,178.8,248.6]
[1747925479457,46.59673306,178.88,178.81,26.0]
[1747925480070,5.59033989,178.88,178.81,26.0]
[1747925480459,5.59033989,178.88,178.81,31.59231623]
[1747925480977,5.59033989,178.88,178.81,26.0]
[1747925482375,5.59033989,178.88,178.81,31.59247895]
[1747925483058,5.59033989,178.88,178.81,26.0]
[1747925483381,32.62088333,178.88,178.81,26.0]
[1747925483581,27.03054344,178.86,178.8,282.12]
[1747925484071,27.03054344,178.87,178.8,282.12]
[1747925484264,5.590965,178.86,178.8,282.12]
[1747925485578,5.590965,178.86,178.8,248.6]
[1747925485870,5.590965,178.86,178.8,282.12]
[1747925486282,5.59065242,178.87,178.8,282.12]
[1747925486869,5.59065242,178.87,178.8,287.71277386]
[1747925487583,5.59065242,178.87,178.8,282.12]
[1747925488662,5.59065242,178.87,178.8,287.71278094]
[1747925488991,27.03054344,178.86,178.8,39.72]
[1747925489196,27.03054344,178.85,178.8,39.72]
[1747925490196,27.03054344,178.84,178.8,39.72]
[1747925490487,5.59190292,178.83,178.8,39.72]
[1747925491670,5.5915688,178.85,178.8,39.72]
[1747925492159,5.59094955,178.87,178.8,39.72]
[1747925492362,11.81948483,178.88,178.8,45.31269316]
[1747925492564,11.81948483,178.88,178.83,26.0]
[1747925493693,38.85002827,178.88,178.81,26.0]
[1747925493880,27.03054344,178.85,178.8,39.72]
[1747925494068,0.14216157,178.87,178.8,39.72]
[1747925494069,27.03054344,178.84,178.8,39.72]
[1747925494271,5.59221563,178.82,178.8,39.72]
[1747925495194,5.59221563,178.82,178.76,33.52]
[1747925495496,5.59221563,178.82,178.76,59.52]
[1747925495692,5.59221563,178.82,178.76,26.0]
[1747925496193,27.03054344,178.85,178.76,31.59383091]
[1747925496370,5.59065242,178.87,178.8,5.59284116]
[1747925496567,5.59065242,178.87,178.8,39.11284116]
[1747925496987,6.2291,178.88,178.83,26.0]
[1747925497597,32.62256005,178.92,178.82,39.74]
[1747925497598,6.1334,178.92,178.85,26.0]
[1747925498095,33.16394344,178.92,178.85,26.0]
[1747925498297,5.58971492,178.9,178.85,26.0]
[1747925498473,5.58946628,178.91,178.85,26.0]
[1747925498673,27.03054344,178.9,178.85,26.0]
[1747925499101,27.03054344,178.89,178.82,65.74]
[1747925499501,0.14216157,178.9,178.82,65.74]
[1747925499707,27.03054344,178.9,178.82,65.74]
[1747925500002,27.03054344,178.89,178.82,65.74]
[1747925500208,27.03054344,178.88,178.82,65.74]
[1747925500376,5.59065242,178.87,178.82,65.74]
[1747925501579,6.1334,178.92,178.82,104.85212156]
[1747925501580,5.58971492,178.9,178.82,104.85212156]
[1747925501997,6.1334,178.92,178.85,26.0]
[1747925501998,5.58940919,178.91,178.85,26.0]
[1747925502705,5.58940919,178.91,178.86,3.15723202]
[1747925502921,5.58940919,178.91,178.87,26.0]
[1747925503279,5.58940919,178.91,178.86,3.15723202]
[1747925503915,5.58940919,178.91,178.85,31.59125122]
[1747925504115,5.58940919,178.91,178.85,31.5912345]
[1747925504501,11.7225559,178.92,178.85,31.5912345]
[1747925504707,11.7225559,178.92,178.85,26.0]
[1747925504906,27.03054344,178.87,178.82,39.74]
[1747925505205,27.03054344,178.86,178.82,39.74]
[1747925505609,27.03054344,178.85,178.82,39.74]
[1747925505806,27.03054344,178.85,178.78,7.80769966]
[1747925506306,27.03054344,178.85,178.79,26.0]
[1747925506513,27.03054344,178.86,178.8,26.0]
[1747925506700,5.5912776,178.85,178.8,26.0]
[1747925508522,5.590965,178.86,178.8,26.0]
[1747925508905,5.59033989,178.88,178.8,31.59283077]
[1747925509082,5.59033989,178.88,178.77,39.7]
[1747925509083,5.59033989,178.88,178.79,5.59308036]
[1747925509290,32.62088333,178.88,178.81,3.16932319]
[1747925509907,5.59033989,178.88,178.81,42.86932319]
[1747925510126,5.59033989,178.88,178.81,39.7]
[1747925510717,5.58971492,178.9,178.82,5.59221563]
[1747925510902,5.58971492,178.9,178.82,39.11221563]
[1747925511791,6.1334,178.92,178.85,26.0]
[1747925512216,11.72259034,178.92,178.85,26.0]
[1747925513587,11.72259034,178.92,178.85,31.59127491]
[1747925514319,11.72259034,178.92,178.85,26.0]
[1747925514493,11.72259034,178.92,178.85,31.59118332]
[1747925515196,11.72259034,178.92,178.86,3.17431641]
[1747925515397,6.1334,178.92,178.86,3.17431641]
[1747925515607,5.58886234,178.93,178.86,3.17431641]
[1747925515998,5.58886234,178.93,178.87,3.17431641]
[1747925517215,5.5884654,178.94,178.87,3.17431641]
[1747925517395,32.61900884,178.94,178.87,3.17431641]
[1747925517712,32.61900884,178.94,178.85,26.0]
[1747925517713,32.61900884,178.94,178.85,31.59105505]
[1747925518219,5.5884654,178.94,178.85,31.59105505]
[1747925518724,11.84289826,178.96,178.88,26.0]
[1747925518896,6.299,179.01,178.92,26.0]
[1747925519096,5.58683845,179.0,178.93,5.58877773]
[1747925519511,5.58683845,179.0,178.94,26.0]
[1747925521329,5.58683845,179.0,178.92,31.58885327]
[1747925522102,5.58683845,179.0,178.93,3.16304026]
[1747925523023,5.58683845,179.0,178.96,26.0]
[1747925523317,5.58683845,179.0,178.96,65.7]
[1747925523822,11.23378185,179.03,178.96,65.7]
[1747925523996,27.91204938,179.14,179.0,26.0]
[1747925523997,5.72532275,179.11,179.0,26.0]
[1747925524206,5.72532275,179.11,179.04,26.0]
[1747925524207,5.58316118,179.11,179.04,26.0]
[1747925524431,5.58316118,179.11,179.05,39.68]
[1747925524629,6.3744,179.12,179.05,39.68]
[1747925524630,11.9572541,179.12,179.05,39.68]
[1747925524829,5.5824866,179.14,179.08,26.0]
[1747925525033,5.58160303,179.16,179.1,26.0]
[1747925526109,19.53561062,179.16,179.1,26.0]
[1747925526305,19.53779166,179.14,179.07,33.5]
[1747925526536,46.5683351,179.14,179.07,33.5]
[1747925527133,74.47946605,179.14,179.07,33.5]
[1747925527336,47.44892261,179.14,179.07,33.5]
[1747925527623,47.44892261,179.14,179.05,39.68]
[1747925529231,74.47946605,179.14,179.05,39.68]
[1747925529614,47.44892261,179.14,179.05,39.68]
[1747925529830,19.53779166,179.14,179.08,26.0]
[1747925530611,13.95556547,179.14,179.08,26.0]
[1747925530935,40.98610891,179.14,179.08,26.0]
[1747925531119,13.95556547,179.14,179.08,26.0]
[1747925531440,40.98610891,179.14,179.08,26.0]
[1747925531740,13.95556547,179.14,179.08,26.0]
[1747925532246,40.98610891,179.14,179.08,26.0]
[1747925532411,27.03054344,179.13,179.06,26.0]
[1747925532740,19.53997319,179.12,179.06,26.0]
[1747925533112,74.48476406,179.12,179.06,26.0]
[1747925533311,74.48476406,179.12,179.05,39.68]
[1747925533543,6.75346157,179.09,179.01,248.7]
[1747925533712,18.64964886,179.08,178.94,2.7506913]
[1747925533917,27.03054344,179.02,178.95,39.62]
[1747925534138,27.03054344,179.02,178.95,65.62]
[1747925534330,27.03054344,179.03,178.95,65.62]
[1747925534524,0.14216157,179.05,178.95,65.62]
[1747925534725,19.55198033,179.01,178.95,65.62]
[1747925535371,5.58628009,179.01,178.95,65.62]
[1747925536843,13.96547071,179.02,178.95,65.62]
[1747925537829,27.03054344,179.01,178.95,39.62]
[1747925538317,19.54979611,179.03,178.95,39.62]
[1747925538636,19.54979611,179.03,178.96,33.48]
[1747925538826,5.58503211,179.05,178.96,33.48]
[1747925539145,19.54761239,179.05,178.96,33.48]
[1747925540339,27.03054344,179.03,178.96,33.48]
[1747925540546,27.03054344,179.03,178.95,39.62]
[1747925540751,46.57815583,179.05,178.95,39.62]
[1747925541531,19.54761239,179.05,178.95,45.20810562]
[1747925542729,46.57488116,179.08,178.98,26.0]
[1747925542931,19.54433772,179.08,178.98,26.0]
[1747925543258,46.57488116,179.08,178.98,59.5]
[1747925543657,27.03054344,179.07,178.98,59.5]
[1747925544245,19.54433772,179.08,178.98,59.5]
[1747925544660,5.58409649,179.08,179.02,26.0]